bitfinex/quotes_SOLUSD_20250706
["timestamp","ask_amount","ask_price","bid_price","bid_amount"]
[1751782783631,7.53551538,148.28,148.25,5.97113262]
[1751782783926,7.53551538,148.28,148.2,23.61673413]
[1751782784229,13.506648,148.28,148.24,5.97113262]
[1751782784531,13.506648,148.28,148.22,6.74639482]
[1751782784834,13.506648,148.28,148.24,5.97113262]
[1751782785349,7.53551538,148.28,148.24,5.97113262]
[1751782785639,7.53551538,148.28,148.22,6.74639482]
[1751782785828,7.53551538,148.28,148.24,5.97113262]
[1751782786025,7.53551538,148.28,148.25,5.97113262]
[1751782786231,13.506648,148.29,148.25,5.97113262]
[1751782786408,7.53551538,148.29,148.25,12.71636496]
[1751782786610,7.53551538,148.3,148.27,5.97113262]
[1751782789413,7.53551538,148.3,148.25,6.74523234]
[1751782789635,7.53551538,148.3,148.27,5.97113262]
[1751782795039,7.53551538,148.3,148.26,5.97113262]
[1751782796046,14.2786794,148.3,148.26,5.97113262]
[1751782797347,20.24981202,148.3,148.26,5.97113262]
[1751782797645,13.506648,148.29,148.24,5.97113262]
[1751782797849,13.506648,148.29,148.25,0.06]
[1751782798655,5.97113262,148.28,148.25,0.06]
[1751782799623,12.71541567,148.28,148.25,0.06]
[1751782801136,12.71541567,148.28,148.24,94.17113262]
[1751782801446,12.71541567,148.28,148.23,100.91733536]
[1751782801645,12.71541567,148.28,148.24,5.97113262]
[1751782801850,5.97113262,148.29,148.24,5.97113262]
[1751782802028,13.52268327,148.29,148.24,5.97113262]
[1751782802328,7.55155065,148.28,148.24,5.97113262]
[1751782802528,13.52268327,148.29,148.24,5.97113262]
[1751782802728,5.97113262,148.28,148.24,5.97113262]
[1751782803145,13.52268327,148.28,148.24,5.97113262]
[1751782803353,5.97113262,148.28,148.24,5.97113262]
[1751782803651,12.71515258,148.28,148.23,100.91733536]
[1751782803854,7.55268893,148.27,148.23,100.91733536]
[1751782804351,7.55268893,148.27,148.23,94.94620274]
[1751782804551,7.55268893,148.27,148.23,100.91733536]
[1751782805429,7.55268893,148.27,148.24,5.97113262]
[1751782807843,7.55268893,148.27,148.23,100.91733536]
[1751782808054,13.52382155,148.27,148.23,100.91733536]
[1751782809353,7.55268893,148.27,148.23,100.91733536]
[1751782809548,13.52382155,148.27,148.23,94.94620274]
[1751782809864,7.55268893,148.26,148.23,88.2]
[1751782810049,7.55268893,148.26,148.22,100.91773184]
[1751782810255,7.55848096,148.26,148.22,100.91773184]
[1751782810863,20.27453294,148.26,148.21,120.94709826]
[1751782811054,7.55848096,148.25,148.22,5.97113262]
[1751782816449,7.55848096,148.25,148.22,12.71768186]
[1751782817654,7.55848096,148.26,148.22,12.71768186]
[1751782817954,7.55848096,148.25,148.22,12.71768186]
[1751782818143,7.55848096,148.26,148.22,12.71768186]
[1751782818360,7.55848096,148.25,148.22,12.71768186]
[1751782818554,12.71577084,148.27,148.22,12.71768186]
[1751782818555,7.55848096,148.26,148.22,12.71768186]
[1751782818751,7.55848096,148.25,148.22,12.71768186]
[1751782818963,20.27456038,148.26,148.21,126.91820189]
[1751782819178,7.55848096,148.25,148.21,126.91820189]
[1751782820166,7.60573262,148.25,148.21,88.2]
[1751782820360,7.60573262,148.25,148.21,100.9183108]
[1751782820573,1.6346,148.25,148.21,100.9183108]
[1751782821268,1.6346,148.25,148.21,94.94717818]
[1751782821472,1.6346,148.25,148.21,100.9183108]
[1751782822187,1.6346,148.25,148.21,12.7183108]
[1751782822564,1.6346,148.25,148.22,0.06]
[1751782824186,1.6346,148.25,148.23,5.97113262]
[1751782824496,1.6346,148.25,148.22,6.03113262]
[1751782825092,1.6346,148.25,148.22,0.06]
[1751782825281,7.5680933,148.24,148.22,0.06]
[1751782825472,7.5680933,148.24,148.22,6.03113262]
[1751782825985,7.5680933,148.24,148.22,0.06]
[1751782826183,1.6346,148.25,148.22,0.06]
[1751782826384,7.56961729,148.24,148.22,0.06]
[1751782826592,1.6346,148.25,148.22,0.06]
[1751782826800,7.56991544,148.24,148.22,0.06]
[1751782827092,7.60573262,148.25,148.22,0.06]
[1751782827306,13.54054119,148.24,148.22,0.06]
[1751782827474,1.6346,148.25,148.22,0.06]
[1751782827672,7.56940857,148.24,148.22,0.06]
[1751782827877,7.56940857,148.23,148.22,0.06]
[1751782828690,7.56940857,148.24,148.22,0.06]
[1751782828981,7.60573262,148.25,148.22,0.06]
[1751782829204,7.56842944,148.24,148.22,0.06]
[1751782829377,7.60573262,148.25,148.22,0.06]
[1751782829578,7.5678371,148.24,148.22,0.06]
[1751782829789,7.60573262,148.25,148.22,0.06]
[1751782830011,7.5678371,148.24,148.22,0.06]
[1751782830210,7.60573262,148.25,148.22,0.06]
[1751782830399,7.56728623,148.24,148.22,0.06]
[1751782830579,14.35113818,148.25,148.22,0.06]
[1751782830777,7.56728352,148.24,148.22,0.06]
[1751782830974,14.35113818,148.25,148.22,0.06]
[1751782831200,7.56698535,148.24,148.22,0.06]
[1751782831385,14.35113818,148.25,148.22,0.06]
[1751782831591,5.97113262,148.23,148.22,0.06]
[1751782831805,7.56681204,148.23,148.22,0.06]
[1751782831989,13.53794466,148.23,148.22,0.06]
[1751782832191,7.56681204,148.23,148.22,0.06]
[1751782833006,7.5356,148.28,148.22,32.03113262]
[1751782833205,7.56579389,148.27,148.25,5.97113262]
[1751782833379,7.56579389,148.26,148.25,5.97113262]
[1751782833576,7.56579389,148.27,148.25,5.97113262]
[1751782833782,7.56579389,148.26,148.25,5.97113262]
[1751782834094,7.56579389,148.27,148.25,5.97113262]
[1751782834304,7.56579389,148.26,148.25,5.97113262]
[1751782834482,7.56579389,148.27,148.25,5.97113262]
[1751782834800,7.56579389,148.26,148.25,5.97113262]
[1751782834977,7.56579389,148.27,148.25,5.97113262]
[1751782835175,7.5356,148.28,148.25,5.97113262]
[1751782835497,7.56792173,148.27,148.26,5.97113262]
[1751782835878,7.56792173,148.27,148.24,6.74564323]
[1751782836077,7.5356,148.28,148.23,6.74611891]
[1751782836078,14.27968824,148.28,148.23,6.74611891]
[1751782836387,7.56893397,148.27,148.24,5.97113262]
[1751782836593,7.56893397,148.26,148.24,5.97113262]
[1751782836793,14.27968824,148.28,148.24,5.97113262]
[1751782837040,14.27968824,148.28,148.23,5.97113262]
[1751782837041,7.56906141,148.27,148.23,5.97113262]
[1751782837199,7.56906141,148.26,148.22,6.03113262]
[1751782837402,7.56906141,148.25,148.22,6.03113262]
[1751782837701,7.56906141,148.24,148.22,6.03113262]
[1751782837888,18.64964886,148.27,148.22,6.03113262]
[1751782838090,7.57126763,148.26,148.22,6.03113262]
[1751782838290,7.57126763,148.25,148.22,6.03113262]
[1751782838490,7.57126763,148.24,148.22,6.03113262]
[1751782838691,7.57126763,148.23,148.22,6.03113262]
[1751782844522,7.57126763,148.23,148.22,12.77786045]
[1751782845384,9.44939422,148.27,148.22,12.77786045]
[1751782845588,7.57786231,148.26,148.24,5.97113262]
[1751782845785,7.57786231,148.25,148.24,5.97113262]
[1751782847910,7.57786231,148.25,148.22,95.00660464]
[1751782848120,7.57786231,148.24,148.23,5.97113262]
[1751782849410,7.57786231,148.24,148.22,6.80660464]
[1751782849596,6.77446395,148.27,148.22,12.77773726]
[1751782849794,7.57988147,148.26,148.22,12.77773726]
[1751782850013,6.77446395,148.27,148.22,12.77773726]
[1751782850014,7.57988147,148.25,148.22,12.77773726]
[1751782850312,7.57988147,148.24,148.22,12.77773726]
[1751782850511,6.77446395,148.27,148.22,12.77773726]
[1751782850719,7.58024264,148.26,148.22,12.77773726]
[1751782851014,7.58024264,148.25,148.22,12.77773726]
[1751782851214,7.58024264,148.24,148.22,12.77773726]
[1751782851410,6.77446395,148.27,148.22,12.77773726]
[1751782851609,7.58070927,148.26,148.23,5.97113262]
[1751782851791,7.58070927,148.25,148.22,0.06]
[1751782851992,7.58070927,148.24,148.23,5.97113262]
[1751782855319,7.58070927,148.24,148.22,6.03113262]
[1751782855507,6.74497127,148.26,148.22,6.03113262]
[1751782855707,7.58179785,148.25,148.22,6.03113262]
[1751782855920,7.58179785,148.24,148.22,6.03113262]
[1751782856119,6.74497127,148.26,148.22,6.03113262]
[1751782856310,7.58176911,148.25,148.22,6.03113262]
[1751782856606,7.58176911,148.24,148.22,6.03113262]
[1751782856811,6.77445268,148.27,148.22,6.03113262]
[1751782857012,7.58176098,148.26,148.22,6.03113262]
[1751782857209,7.58176098,148.25,148.22,6.03113262]
[1751782857410,7.58176098,148.24,148.22,6.03113262]
[1751782857609,7.58176098,148.23,148.22,6.03113262]
[1751782858296,7.58176098,148.23,148.22,0.06]
[1751782863002,14.32803366,148.23,148.22,0.06]
[1751782865018,38.94881514,148.23,148.22,0.06]
[1751782865202,56.6099286,148.23,148.22,0.06]
[1751782865404,47.13461514,148.23,148.22,0.06]
[1751782866009,82.19461514,148.23,148.22,0.06]
[1751782866204,91.66377566,148.23,148.22,0.06]
[1751782866404,82.19461514,148.23,148.22,0.06]
[1751782867220,91.66025343,148.23,148.22,0.06]
[1751782870023,60.29319927,148.23,148.22,0.06]
[1751782870326,9.22956098,148.23,148.22,0.06]
[1751782874831,9.21124403,148.23,148.22,0.06]
[1751782879344,34.60716557,148.23,148.22,0.06]
[1751782879548,40.57829819,148.23,148.22,0.06]
[1751782882715,40.57829819,148.23,148.22,0.06]
[1751782885743,75.63829819,148.23,148.22,0.06]
[1751782886521,68.89202551,148.23,148.22,0.06]
[1751782887221,75.63829819,148.23,148.22,0.06]
[1751782887647,40.57829819,148.23,148.22,0.06]
[1751782889743,7.56344403,148.23,148.22,0.06]
[1751782893356,38.93049819,148.23,148.22,0.06]
[1751782894247,7.56344403,148.23,148.22,0.06]
[1751782896246,7.56344403,148.23,148.22,6.03113262]
[1751782897248,7.57035224,148.23,148.22,6.03113262]
[1751782898459,7.57035224,148.26,148.22,6.03113262]
[1751782898660,7.57035224,148.25,148.23,5.97113262]
[1751782898850,7.57035224,148.24,148.23,5.97113262]
[1751782900068,7.57035224,148.24,148.23,12.7174053]
[1751782900762,7.57035224,148.24,148.23,5.97113262]
[1751782901470,7.57035224,148.24,148.23,6.74627268]
[1751782901652,7.57035224,148.24,148.23,12.7174053]
[1751782902568,0.03,148.27,148.23,12.7174053]
[1751782902766,7.57141237,148.26,148.25,5.97113262]
[1751782905055,7.59506671,148.27,148.25,5.97113262]
[1751782905252,7.59506671,148.27,148.26,5.97113262]
[1751782906081,0.03,148.27,148.26,5.97113262]
[1751782906284,0.03,148.27,148.26,12.71604021]
[1751782908782,0.03,148.27,148.25,6.74536256]
[1751782908982,0.03,148.27,148.26,5.97113262]
[1751782910006,0.03,148.27,148.26,12.71604021]
[1751782914299,0.03,148.27,148.25,5.97113262]
[1751782919992,0.03,148.27,148.26,5.97113262]
[1751782927809,0.03,148.27,148.26,3.81410958]
[1751782935118,7.59053948,148.27,148.26,3.81410958]
[1751782950217,7.59053948,148.27,148.25,0.06]
[1751782950402,7.56053948,148.26,148.25,0.06]
[1751782950603,37.80029792,148.26,148.25,0.06]
[1751782951010,18.64964886,148.25,148.22,0.06]
[1751782951307,50.06165844,148.23,148.22,0.06]
[1751782951503,57.62219792,148.23,148.22,0.06]
[1751782952230,64.3684706,148.23,148.22,0.06]
[1751782952528,73.83152277,148.23,148.22,0.06]
[1751782953038,70.01741319,148.23,148.22,0.06]
[1751782953332,35.15843948,148.23,148.22,0.06]
[1751782953716,9.15843948,148.23,148.22,0.06]
[1751782953919,7.56053948,148.23,148.22,0.06]
[1751782966750,14.30681216,148.23,148.22,0.06]
[1751782968034,38.92042252,148.23,148.22,0.06]
[1751782969627,73.88042252,148.23,148.22,0.06]
[1751782972264,75.45442252,148.23,148.22,0.06]
[1751782972556,84.91747469,148.23,148.22,0.06]
[1751782974657,84.88545338,148.23,148.22,0.06]
[1751782976152,75.44569208,148.23,148.22,0.06]
[1751782976332,69.48173058,148.23,148.22,0.06]
[1751782976534,75.44569208,148.23,148.22,0.06]
[1751782976740,69.48173058,148.23,148.22,0.06]
[1751782976926,84.88335791,148.23,148.22,0.06]
[1751782978059,75.44569208,148.23,148.22,0.06]
[1751782980562,27.7754579,148.23,148.22,0.06]
[1751782980767,7.55180904,148.23,148.22,6.0239615]
[1751782980969,49.25754502,148.25,148.22,6.0239615]
[1751782981144,7.55180904,148.24,148.22,6.0239615]
[1751782982232,49.25754502,148.25,148.22,6.0239615]
[1751782982436,7.55180904,148.24,148.22,0.06]
[1751782986267,7.55180904,148.23,148.22,0.06]
[1751782986440,7.55180904,148.24,148.22,0.06]
[1751782986646,7.55180904,148.23,148.22,0.06]
[1751782986846,7.55180904,148.24,148.22,0.06]
[1751782987208,7.55180904,148.23,148.22,0.06]
[1751782987375,7.55180904,148.24,148.22,0.06]
[1751782987669,7.55180904,148.23,148.22,0.06]
[1751782987867,7.55180904,148.24,148.22,0.06]
[1751782988050,7.55180904,148.23,148.22,0.06]
[1751782988252,7.55180904,148.24,148.22,0.06]
[1751782988462,7.55180904,148.23,148.22,0.06]
[1751782988655,7.55180904,148.24,148.22,0.06]
[1751782988854,7.55180904,148.23,148.22,0.06]
[1751782989054,7.55180904,148.24,148.22,0.06]
[1751782989256,7.55180904,148.23,148.22,0.06]
[1751782989461,7.55180904,148.24,148.22,0.06]
[1751782989659,7.55180904,148.23,148.22,0.06]
[1751782989858,7.55180904,148.24,148.22,0.06]
[1751782990172,7.55180904,148.23,148.22,0.06]
[1751782997962,7.55180904,148.23,148.22,3.87686295]
[1751782999058,7.55180904,148.23,148.22,10.62359078]
[1751782999764,7.55180904,148.23,148.22,12.76826947]
[1751782999970,7.55180904,148.26,148.22,12.76826947]
[1751783000165,9.46766583,148.27,148.25,5.96154164]
[1751783000370,9.46766583,148.27,148.24,5.96154164]
[1751783000371,7.5717042,148.26,148.24,5.96154164]
[1751783000686,7.5717042,148.25,148.24,5.96154164]
[1751783001883,7.5717042,148.25,148.23,5.96154164]
[1751783002088,7.5717042,148.24,148.23,5.96154164]
[1751783004361,7.5717042,148.24,148.23,12.70781432]
[1751783008994,7.5717042,148.26,148.23,12.70781432]
[1751783009182,7.5717042,148.25,148.23,6.74627268]
[1751783009491,0.03,148.27,148.24,5.96154164]
[1751783009734,7.56579008,148.26,148.25,5.96154164]
[1751783011992,7.56395927,148.26,148.25,5.96154164]
[1751783014711,7.56395927,148.26,148.22,0.06]
[1751783014917,7.56395927,148.25,148.24,5.96154164]
[1751783015197,7.56395927,148.26,148.24,5.96154164]
[1751783015401,7.56395927,148.25,148.24,5.96154164]
[1751783015577,7.56395927,148.26,148.24,5.96154164]
[1751783015776,7.56395927,148.25,148.24,5.96154164]
[1751783017902,0.03,148.26,148.24,5.96154164]
[1751783018205,7.56101936,148.25,148.24,5.96154164]
[1751783019800,7.56101936,148.25,148.24,3.8151918]
[1751783023609,0.03,148.26,148.24,3.8151918]
[1751783023819,7.57048291,148.25,148.22,6.80656813]
[1751783024110,7.57048291,148.24,148.22,6.80656813]
[1751783024293,0.03,148.26,148.22,6.80656813]
[1751783024497,7.57296385,148.25,148.22,6.80656813]
[1751783024704,7.57296385,148.24,148.22,6.80656813]
[1751783024902,0.03,148.26,148.23,10.5613978]
[1751783025107,0.03,148.26,148.25,3.8151918]
[1751783025413,7.60289849,148.26,148.25,3.8151918]
[1751783035925,7.60289849,148.26,148.23,6.74627268]
[1751783036126,0.03,148.26,148.25,3.8151918]
[1751783036322,7.60718092,148.26,148.25,3.8151918]
[1751783037728,7.60718092,148.26,148.24,3.8151918]
[1751783038031,7.57718092,148.25,148.22,32.80666469]
[1751783038216,0.03,148.26,148.24,3.8151918]
[1751783038530,0.03,148.26,148.25,3.8151918]
[1751783038724,7.60956021,148.26,148.25,3.8151918]
[1751783040712,7.60956021,148.26,148.24,3.8151918]
[1751783040904,7.57956021,148.25,148.24,3.8151918]
[1751783042839,7.57956021,148.25,148.22,0.06]
[1751783043020,9.49310364,148.26,148.24,3.8151918]
[1751783043223,7.58821442,148.25,148.24,3.8151918]
[1751783050351,23.7968588,148.25,148.22,3.8751918]
[1751783050540,17.05131806,148.24,148.22,0.06]
[1751783050836,7.58821442,148.23,148.22,0.06]
[1751783055024,7.58821442,148.23,148.22,3.8751918]
[1751783060333,7.58821442,148.23,148.22,0.06]
[1751783060334,14.3344871,148.23,148.22,0.06]
[1751783060645,23.79759074,148.23,148.22,0.06]
[1751783061453,14.3344871,148.23,148.22,0.06]
[1751783064229,23.79759074,148.23,148.22,0.06]
[1751783064652,14.3344871,148.23,148.22,0.06]
[1751783065234,18.1496789,148.23,148.22,0.06]
[1751783065429,38.41962776,148.23,148.22,0.06]
[1751783065836,73.21962776,148.23,148.22,0.06]
[1751783068454,82.67989554,148.23,148.22,0.06]
[1751783069782,82.65608906,148.23,148.22,0.06]
[1751783070855,65.63141334,148.23,148.22,0.06]
[1751783071046,82.65279483,148.23,148.22,0.06]
[1751783071460,77.21730303,148.23,148.22,0.06]
[1751783071649,67.76097998,148.23,148.22,0.06]
[1751783072051,32.96097998,148.23,148.22,0.06]
[1751783074252,36.77617178,148.23,148.22,0.06]
[1751783078466,71.55617178,148.23,148.22,0.06]
[1751783079368,81.01249483,148.23,148.22,0.06]
[1751783080067,71.55617178,148.23,148.22,0.06]
[1751783082362,88.42185349,148.23,148.16,3.8151918]
[1751783082672,3.8151918,148.21,148.16,3.8151918]
[1751783082872,7.56505844,148.2,148.16,3.8151918]
[1751783083059,7.56505844,148.19,148.14,6.75028114]
[1751783083258,7.56505844,148.18,148.16,3.8151918]
[1751783083461,6.74829083,148.19,148.16,3.8151918]
[1751783083661,7.56505844,148.18,148.16,3.8151918]
[1751783084669,7.56505844,148.19,148.17,3.8151918]
[1751783084969,7.56505844,148.18,148.17,3.8151918]
[1751783085169,7.56505844,148.19,148.17,3.8151918]
[1751783085367,7.56505844,148.18,148.17,3.8151918]
[1751783085668,7.56505844,148.19,148.17,3.8151918]
[1751783086272,7.56505844,148.18,148.17,3.8151918]
[1751783086476,7.56505844,148.19,148.17,3.8151918]
[1751783087374,7.56505844,148.18,148.17,3.8151918]
[1751783087577,7.56505844,148.19,148.16,3.8151918]
[1751783087782,7.56505844,148.18,148.16,3.8151918]
[1751783087983,7.56505844,148.19,148.16,3.8151918]
[1751783088180,7.56505844,148.18,148.16,3.8151918]
[1751783088354,7.56505844,148.19,148.16,3.8151918]
[1751783088558,7.56505844,148.18,148.16,3.8151918]
[1751783088759,7.56505844,148.19,148.16,3.8151918]
[1751783088981,7.56505844,148.18,148.16,3.8151918]
[1751783089183,7.56505844,148.19,148.16,3.8151918]
[1751783089383,7.56505844,148.18,148.16,3.8151918]
[1751783089678,7.56505844,148.19,148.16,3.8151918]
[1751783089883,7.56505844,148.18,148.16,3.8151918]
[1751783090185,7.56505844,148.19,148.16,3.8151918]
[1751783090483,7.56505844,148.18,148.16,3.8151918]
[1751783090669,7.56505844,148.19,148.16,3.8151918]
[1751783090856,7.56505844,148.18,148.16,3.8151918]
[1751783091060,7.56505844,148.19,148.16,3.8151918]
[1751783091273,7.56505844,148.18,148.16,3.8151918]
[1751783091464,6.74768145,148.2,148.14,6.75037127]
[1751783091465,7.56505844,148.19,148.14,6.75037127]
[1751783091656,7.56505844,148.18,148.17,3.8151918]
[1751783092080,7.56505844,148.18,148.13,122.55196052]
[1751783092299,7.56505844,148.18,148.16,3.8151918]
[1751783092478,7.56505844,148.17,148.16,3.8151918]
[1751783092780,7.56505844,148.18,148.16,3.8151918]
[1751783092968,7.56505844,148.17,148.16,3.8151918]
[1751783093166,7.56505844,148.18,148.16,3.8151918]
[1751783093369,7.56505844,148.17,148.16,3.8151918]
[1751783096057,7.56505844,148.17,148.15,3.8151918]
[1751783096383,7.56505844,148.16,148.15,3.8151918]
[1751783096570,7.56505844,148.17,148.15,3.8151918]
[1751783096771,7.56505844,148.16,148.15,3.8151918]
[1751783096970,7.56505844,148.17,148.15,3.8151918]
[1751783097266,7.56505844,148.16,148.15,3.8151918]
[1751783097469,7.56505844,148.17,148.15,3.8151918]
[1751783097787,7.56505844,148.16,148.15,3.8151918]
[1751783097971,7.56505844,148.17,148.15,3.8151918]
[1751783098170,7.56505844,148.16,148.15,3.8151918]
[1751783098372,7.56505844,148.17,148.15,3.8151918]
[1751783098684,7.56505844,148.16,148.15,3.8151918]
[1751783098896,7.56505844,148.17,148.15,3.8151918]
[1751783099183,7.56505844,148.16,148.15,3.8151918]
[1751783099363,7.56505844,148.18,148.13,32.75064444]
[1751783099559,7.56505844,148.17,148.15,3.8151918]
[1751783099804,7.56505844,148.16,148.15,3.8151918]
[1751783100085,7.56505844,148.18,148.15,3.8151918]
[1751783100265,7.56505844,148.17,148.15,3.8151918]
[1751783100466,7.56505844,148.16,148.15,3.8151918]
[1751783100666,7.56505844,148.18,148.15,3.8151918]
[1751783100883,7.56505844,148.17,148.15,3.8151918]
[1751783101187,7.56505844,148.16,148.12,102.27083897]
[1751783101367,7.56505844,148.17,148.15,3.8151918]
[1751783101567,7.56505844,148.16,148.15,3.8151918]
[1751783101784,7.56505844,148.17,148.15,3.8151918]
[1751783101964,7.56505844,148.16,148.15,3.8151918]
[1751783102157,14.31918599,148.17,148.12,7.32]
[1751783102383,7.57009422,148.16,148.15,0.06]
[1751783104485,7.57009422,148.16,148.15,3.8751918]
[1751783104673,7.57009422,148.16,148.15,0.06]
[1751783104861,7.57009422,148.16,148.15,3.8751918]
[1751783108694,7.57009422,148.16,148.15,0.06]
[1751783108987,7.57009422,148.16,148.15,3.8751918]
[1751783110196,7.57718236,148.16,148.15,3.8751918]
[1751783110492,7.57718236,148.16,148.15,0.06]
[1751783116172,14.3266424,148.16,148.15,0.06]
[1751783118396,7.57718236,148.16,148.15,0.06]
[1751783134106,14.3266424,148.16,148.15,0.06]
[1751783141311,7.57718236,148.16,148.15,0.06]
[1751783141521,7.57718236,148.16,148.15,3.8751918]
[1751783142818,7.57718236,148.16,148.15,0.06]
[1751783143115,7.57718236,148.16,148.15,3.8751918]
[1751783164934,7.57718236,148.16,148.15,0.06]
[1751783169140,7.57718236,148.16,148.15,3.8751918]
[1751783170450,7.57718236,148.16,148.15,0.06]
[1751783170746,7.57718236,148.16,148.15,3.8751918]
[1751783171043,7.57718236,148.16,148.15,0.06]
[1751783194567,7.57718236,148.16,148.15,3.8751918]
[1751783195164,7.59403391,148.16,148.15,3.8751918]
[1751783196859,7.59403391,148.16,148.15,10.62510742]
[1751783199560,9.49254239,148.21,148.15,10.62510742]
[1751783199765,7.58963969,148.2,148.18,3.8151918]
[1751783200065,7.58963969,148.19,148.16,3.8151918]
[1751783200270,7.58963969,148.18,148.17,3.8151918]
[1751783208376,7.58963969,148.18,148.15,32.80991562]
[1751783208559,9.49254239,148.2,148.17,3.8151918]
[1751783208759,7.58706187,148.19,148.17,3.8151918]
[1751783208959,7.58706187,148.18,148.17,3.8151918]
[1751783209782,7.58706187,148.18,148.15,6.80977611]
[1751783209953,16.2402308,148.2,148.15,6.80977611]
[1751783209954,7.58706187,148.17,148.16,3.8151918]
[1751783210876,7.58706187,148.17,148.15,6.80977611]
[1751783210877,7.58706187,148.17,148.15,0.06]
[1751783211172,7.58706187,148.16,148.15,0.06]
[1751783211875,18.15171371,148.16,148.15,0.06]
[1751783212260,14.33652191,148.16,148.15,0.06]
[1751783212460,38.99167077,148.16,148.15,0.06]
[1751783212673,18.64964886,148.15,148.11,4.0151918]
[1751783212860,7.58706187,148.14,148.13,3.8151918]
[1751783215664,7.58706187,148.14,148.11,0.2]
[1751783215862,7.58706187,148.13,148.11,4.0151918]
[1751783216068,7.58706187,148.12,148.11,4.0151918]
[1751783216272,9.48462119,148.17,148.11,98.96693037]
[1751783216580,7.5818506,148.16,148.13,3.8151918]
[1751783216880,7.5818506,148.15,148.13,3.8151918]
[1751783217080,7.5818506,148.14,148.13,3.8151918]
[1751783222461,36.48963328,148.18,148.13,3.8151918]
[1751783222669,7.58004242,148.17,148.13,94.95072304]
[1751783222981,9.48462119,148.19,148.16,3.8151918]
[1751783223186,7.57942931,148.18,148.17,3.8151918]
[1751783226390,7.57942931,148.18,148.16,3.8151918]
[1751783226584,7.57942931,148.17,148.16,3.8151918]
[1751783230985,7.60942931,148.17,148.16,3.8151918]
[1751783233601,7.10942931,148.17,148.16,3.8151918]
[1751783233789,7.10942931,148.17,148.13,121.01066719]
[1751783234092,6.77910994,148.17,148.14,3.8151918]
[1751783235787,6.77910994,148.17,148.13,0.06]
[1751783235990,6.77910994,148.17,148.13,3.8751918]
[1751783240576,12.21210174,148.17,148.13,3.8751918]
[1751783240777,21.69672293,148.17,148.13,3.8751918]
[1751783242984,21.69672293,148.17,148.13,0.06]
[1751783245698,7.57867937,148.16,148.13,0.06]
[1751783245897,7.57867937,148.15,148.13,0.06]
[1751783246099,7.57867937,148.14,148.13,0.06]
[1751783266220,14.32905064,148.14,148.13,0.06]
[1751783266426,18.14424244,148.14,148.13,0.06]
[1751783274529,14.32905064,148.14,148.13,0.06]
[1751783278321,36.7938913,148.14,148.13,0.06]
[1751783278730,46.27851249,148.14,148.13,0.06]
[1751783279322,32.9786995,148.14,148.13,0.06]
[1751783279733,7.57867937,148.14,148.13,0.06]
[1751783281439,14.32905064,148.14,148.13,0.06]
[1751783282739,7.57867937,148.14,148.13,0.06]
[1751783284249,17.06330056,148.14,148.13,0.06]
[1751783288648,7.57867937,148.14,148.13,3.8751918]
[1751783289932,7.57867937,148.14,148.13,0.06]
[1751783303460,18.14424244,148.14,148.13,0.06]
[1751783306455,18.15781859,148.14,148.13,0.06]
[1751783307744,27.64813799,148.14,148.13,0.06]
[1751783311369,23.83294619,148.14,148.13,0.06]
[1751783311552,27.64813799,148.14,148.13,0.06]
[1751783319477,23.83294619,148.14,148.13,0.06]
[1751783319680,27.64813799,148.14,148.13,0.06]
[1751783321379,17.08257492,148.14,148.13,0.06]
[1751783323882,7.59225552,148.14,148.13,0.06]
[1751783325177,17.08257492,148.14,148.13,0.06]
[1751783328065,20.89776672,148.14,148.13,0.06]
[1751783335588,27.64813799,148.14,148.13,0.06]
[1751783339785,46.29778685,148.14,148.13,0.06]
[1751783340096,71.18746745,148.14,148.11,0.2]
[1751783340293,3.8151918,148.12,148.11,0.2]
[1751783340495,11.40744732,148.12,148.11,0.2]
[1751783340871,11.40663681,148.12,148.11,0.2]
[1751783343502,7.59144501,148.12,148.11,0.2]
[1751783353000,11.40663681,148.12,148.11,0.2]
[1751783358983,7.59144501,148.12,148.11,0.2]
[1751783378214,14.34272775,148.12,148.11,0.2]
[1751783379118,18.15791955,148.12,148.11,0.2]
[1751783379810,7.59144501,148.12,148.11,0.2]
[1751783388220,47.88597468,148.12,148.11,0.2]
[1751783388419,38.39666841,148.12,148.1,0.2]
[1751783388715,20.90114444,148.11,148.1,0.2]
[1751783389317,20.90114444,148.11,148.1,0.03956782]
[1751783390019,27.65288301,148.11,148.1,0.03956782]
[1751783391424,46.30253187,148.11,148.1,0.03956782]
[1751783395509,80.60253187,148.11,148.1,0.00784745]
[1751783399012,79.93115271,148.11,148.08,0.2]